bitfinex-derivatives/quotes_ETHF0:USTF0_20250322
["timestamp","ask_amount","ask_price","bid_price","bid_amount"]
[1742614535143,3.28192312,1986.0,1985.9,3.14018]
[1742614536045,3.28192312,1986.0,1985.9,4.49228]
[1742614536939,2.3935606,1986.0,1985.9,4.49228]
[1742614537135,1.3904582,1986.0,1985.9,4.49228]
[1742614547551,1.3904582,1986.0,1985.9,7.68928]
[1742614547552,0.0075582,1986.0,1985.9,7.68928]
[1742614553850,1.00397908,1986.3,1986.2,1.00733]
[1742614554048,1.00397908,1986.4,1986.3,1.00727]
[1742614554351,1.00397908,1986.4,1986.3,7.81077]
[1742614554955,1.3238,1986.7,1986.6,1.00712]
[1742614555152,2.1756,1986.8,1986.7,1.00707]
[1742614555451,1.1155,1986.8,1986.7,4.20407]
[1742614555859,1.0676582,1986.9,1986.8,1.00702]
[1742614556253,1.0676582,1986.9,1986.8,2.40722]
[1742614558955,4.2754582,1986.9,1986.8,1.00702]
[1742614559361,6.16915476,1986.9,1986.8,1.00702]
[1742614559663,7.17044787,1986.9,1986.8,1.00702]
[1742614559955,6.16915476,1986.9,1986.8,1.00702]
[1742614560155,5.2824282,1986.9,1986.8,1.00702]
[1742614560359,4.2754582,1986.9,1986.8,1.00702]
[1742614560545,5.2824282,1986.9,1986.8,1.00702]
[1742614562156,5.2824282,1986.9,1986.6,2.5252982]
[1742614562157,1.00707,1986.8,1986.7,1.00703]
[1742614563159,5.2824682,1986.9,1986.8,1.00702]
[1742614563460,5.27607375,1986.9,1986.8,1.00702]
[1742614563655,2.06827375,1986.9,1986.8,1.00702]
[1742614564154,1.0676582,1986.9,1986.8,1.00702]
[1742614564554,4.2754582,1986.9,1986.8,1.00702]
[1742614566962,5.2824282,1986.9,1986.8,1.00702]
[1742614567162,4.2754582,1986.9,1986.8,1.00702]
[1742614567650,5.2824282,1986.9,1986.8,1.00702]
[1742614568461,4.2754582,1986.9,1986.8,1.00702]
[1742614569065,5.2824282,1986.9,1986.8,1.00702]
[1742614569763,1.00707,1986.8,1986.7,1.00704]
[1742614570564,1.00707,1986.7,1986.6,1.0146582]
[1742614570764,4.21487,1986.7,1986.6,0.0075582]
[1742614571456,5.10099181,1986.7,1986.6,0.0075582]
[1742614571651,5.10099181,1986.7,1986.6,1.0146782]
[1742614571858,6.1022104,1986.7,1986.6,1.0146782]
[1742614573365,6.1022104,1986.7,1986.6,0.0075582]
[1742614574962,7.3847104,1986.7,1986.6,0.0075582]
[1742614575164,7.3847104,1986.7,1986.6,1.0146782]
[1742614577370,8.8776404,1986.7,1986.3,1.00725]
[1742614577566,1.00727,1986.4,1986.3,1.00725]
[1742614577767,1.00727,1986.3,1986.2,1.00728]
[1742614577967,7.51289181,1986.3,1986.2,1.00728]
[1742614578465,8.5141104,1986.3,1986.2,1.00728]
[1742614581471,5.3063104,1986.3,1986.2,1.00728]
[1742614581670,7.5068404,1986.3,1986.2,1.00728]
[1742614581973,7.5068404,1986.3,1986.2,2.13998]
[1742614582173,6.50562181,1986.3,1986.2,2.13998]
[1742614582373,5.6195,1986.3,1986.2,2.13998]
[1742614582575,6.62677,1986.3,1986.2,2.13998]
[1742614583175,5.6195,1986.3,1986.2,2.13998]
[1742614583577,4.528,1986.3,1986.2,2.13998]
[1742614583772,5.968,1986.4,1986.3,1.00727]
[1742614583975,5.968,1986.4,1986.3,2.35217]
[1742614584179,1.0682,1986.8,1986.7,1.00707]
[1742614584375,5.15147801,1986.8,1986.7,1.00707]
[1742614584681,6.15387182,1986.8,1986.7,1.00707]
[1742614584875,2.95787182,1986.8,1986.7,1.00707]
[1742614585077,1.00239381,1986.8,1986.7,1.00707]
[1742614585478,1.00239381,1986.8,1986.7,2.28367]
[1742614586568,1.88968289,1986.8,1986.7,2.28367]
[1742614586776,1.88970121,1986.8,1986.7,2.28367]
[1742614587076,3.22580308,1986.8,1986.7,2.28367]
[1742614587282,4.23282308,1986.8,1986.7,2.28367]
[1742614588381,3.22580308,1986.8,1986.7,2.28367]
[1742614588682,4.23282308,1986.8,1986.7,2.28367]
[1742614590381,3.22580308,1986.8,1986.7,2.28367]
[1742614593087,1.88970308,1986.8,1986.7,2.28367]
[1742614593287,1.00239381,1986.8,1986.7,2.28367]
[1742614593586,1.88970308,1986.8,1986.7,2.28367]
[1742614593888,1.00239381,1986.8,1986.7,2.28367]
[1742614594276,1.89726128,1986.9,1986.8,1.00702]
[1742614594482,1.00995201,1986.9,1986.8,2.36332]
[1742614594883,0.0075582,1986.9,1986.8,2.36332]
[1742614595189,4.2223282,1986.9,1986.8,2.36332]
[1742614595381,6.41753747,1986.9,1986.8,2.36332]
[1742614595581,7.41993128,1986.9,1986.8,2.36332]
[1742614597590,1.00707,1986.8,1986.7,1.00704]
[1742614597790,1.0071,1986.7,1986.6,2.36617]
[1742614597987,1.6527,1986.7,1986.6,2.36617]
[1742614598190,2.929,1986.7,1986.6,2.36617]
[1742614598391,3.81630927,1986.7,1986.6,2.36617]
[1742614598796,4.81870308,1986.7,1986.6,2.36617]
[1742614599193,3.81160308,1986.7,1986.6,2.36617]
[1742614599895,4.81867308,1986.7,1986.6,2.36617]
[1742614600192,3.81160308,1986.7,1986.6,2.36617]
[1742614601897,2.92429381,1986.7,1986.6,2.36617]
[1742614602495,4.81911474,1986.7,1986.6,2.36617]
[1742614605490,3.81204474,1986.7,1986.6,2.36617]
[1742614606287,4.81911474,1986.7,1986.6,2.36617]
[1742614606488,8.02691474,1986.7,1986.6,1.00707]
[1742614606889,7.01984474,1986.7,1986.5,1.3449]
[1742614607095,2.21405093,1986.6,1986.5,2.35207]
[1742614607487,4.22356474,1986.6,1986.5,2.35207]
[1742614607995,1.00717,1986.5,1986.4,1.00718]
[1742614608196,3.01687,1986.5,1986.4,2.35208]
[1742614608494,3.90462093,1986.5,1986.4,2.35208]
[1742614608695,4.90701474,1986.5,1986.4,2.35208]
[1742614609193,1.00725,1986.4,1986.3,1.00724]
[1742614609395,2.33355,1986.4,1986.3,2.35214]
[1742614609694,1.3263,1986.4,1986.3,2.35214]
[1742614610393,2.33352,1986.4,1986.3,2.35214]
[1742614611893,1.3263,1986.4,1986.3,2.35214]
[1742614612697,2.33352,1986.4,1986.3,1.00724]
[1742614613291,2.33352,1986.4,1986.3,2.31114]
[1742614613491,3.00142,1986.4,1986.3,2.31114]
[1742614613689,4.89156474,1986.4,1986.3,2.31114]
[1742614613890,4.00381381,1986.4,1986.3,2.31114]
[1742614614300,3.00142,1986.4,1986.3,2.31114]
[1742614615194,1.9942,1986.4,1986.3,2.31114]
[1742614615399,1.3263,1986.4,1986.3,2.31114]
[1742614617505,1.00239381,1986.5,1986.4,1.00722]
[1742614617801,5.968,1986.6,1986.5,1.00717]
[1742614618001,5.968,1986.6,1986.5,2.29337]
[1742614618500,0.0075582,1986.9,1986.8,1.00702]
[1742614618697,0.89611875,1986.9,1986.8,1.00702]
[1742614618894,3.19556748,1986.9,1986.8,1.00702]
[1742614619099,4.20253748,1986.9,1986.8,1.00702]
[1742614619298,4.20253748,1986.9,1986.8,1.65022]
[1742614620601,7.41033748,1986.9,1986.8,1.00702]
[1742614621203,6.40336748,1986.9,1986.6,3.195]
[1742614621408,1.00707,1986.7,1986.6,2.34648]
[1742614621602,1.00707,1986.7,1986.6,1.00708]
[1742614621801,2.41587,1986.7,1986.6,1.00708]
[1742614622204,1.89250928,1986.8,1986.7,1.00707]
[1742614622403,3.30130928,1986.8,1986.7,1.00707]
[1742614622910,1.00394873,1986.8,1986.7,1.00707]
[1742614623307,1.00394873,1986.8,1986.5,3.16086]
[1742614623308,1.01150693,1986.9,1986.8,1.00702]
[1742614623604,0.0075582,1986.9,1986.8,1.00702]
[1742614625602,1.3679582,1986.9,1986.8,1.00702]
[1742614628212,0.0075582,1986.9,1986.8,1.00702]
[1742614628906,0.0075582,1986.9,1986.8,4.20202]
[1742614631009,1.3140582,1986.9,1986.8,1.00702]
[1742614635119,1.3140582,1986.9,1986.8,2.32682]
[1742614641319,2.3210282,1986.9,1986.8,1.00702]
[1742614641910,2.3210282,1986.9,1986.8,2.28582]
[1742614642721,3.20853517,1986.9,1986.8,2.28582]
[1742614643212,4.211303,1986.9,1986.8,2.28582]
[1742614643810,4.211303,1986.9,1986.8,2.96392]
[1742614644210,3.20853517,1986.9,1986.8,2.96392]
[1742614644422,2.3210282,1986.9,1986.8,2.96392]
[1742614645819,1.3140582,1986.9,1986.8,2.96392]
[1742614646414,1.3140582,1986.9,1986.8,3.62012]
[1742614646818,0.0075582,1986.9,1986.8,3.62012]
[1742614647021,1.00276783,1987.1,1987.0,1.00692]
[1742614647225,0.88750697,1987.1,1987.0,4.20192]
[1742614647825,1.8902748,1987.1,1987.0,4.20192]
[1742614648025,2.33726783,1987.1,1987.0,4.20192]
[1742614648627,2.0384,1987.1,1987.0,4.20192]
[1742614649225,2.6931,1987.1,1987.0,4.20192]
[1742614649429,2.6931,1987.1,1987.0,1.00692]
[1742614649832,1.00696,1987.0,1986.9,1.00693]
[1742614650043,1.00697,1986.9,1986.8,5.49858]
[1742614650529,1.3978,1986.9,1986.8,5.49858]
[1742614650932,2.40477,1986.9,1986.8,5.49858]
[1742614652120,2.40477,1986.9,1986.8,2.30458]
[1742614652326,1.3978,1986.9,1986.8,2.30458]
[1742614653630,2.40477,1986.9,1986.8,2.30458]
[1742614660339,1.3978,1986.9,1986.8,2.30458]
[1742614662233,2.40477,1986.9,1986.8,2.30458]
[1742614663642,1.3978,1986.9,1986.8,2.30458]
[1742614665143,2.40477,1986.9,1986.8,2.30458]
[1742614665645,1.3978,1986.9,1986.8,2.30458]
[1742614666637,1.8902748,1987.0,1986.9,1.00697]
[1742614666840,3.1767748,1987.0,1986.9,3.08777]
[1742614672047,2.28926783,1987.0,1986.9,3.08777]
[1742614673155,1.00276783,1987.0,1986.9,3.08777]
[1742614673348,4.5112,1987.1,1987.0,1.00692]
[1742614673548,4.5112,1987.1,1987.0,2.27882]
[1742614673747,4.09645914,1987.1,1987.0,2.27882]
[1742614673955,4.21182252,1987.1,1987.0,2.27882]
[1742614674351,3.2078,1987.1,1987.0,2.27882]
[1742614674754,4.21182252,1987.1,1987.0,2.27882]
[1742614680250,5.10018514,1987.1,1987.0,2.27882]
[1742614680854,6.49098514,1987.1,1987.0,2.27882]
[1742614681056,7.49785514,1987.1,1987.0,2.27882]
[1742614681557,7.49785514,1987.1,1987.0,1.00692]
[1742614681750,1.00692,1987.0,1986.9,2.39194]
[1742614682058,4.63348262,1987.0,1986.9,2.39194]
[1742614682450,5.63750514,1987.0,1986.9,2.39194]
[1742614682858,5.63750514,1987.0,1986.9,1.00694]
[1742614683660,5.63750514,1987.0,1986.9,2.34664]
[1742614687258,4.74914252,1987.0,1986.9,2.34664]
[1742614687859,3.74512,1987.0,1986.9,2.34664]
[1742614689561,4.63393824,1987.0,1986.9,2.34664]
[1742614690061,3.74222252,1987.0,1986.9,2.34664]
[1742614690252,2.7382,1987.0,1986.9,2.34664]
[1742614690847,3.74512,1987.0,1986.9,2.34664]
[1742614691053,4.6310907,1987.0,1986.9,2.34664]
[1742614691254,3.74222252,1987.0,1986.9,2.34664]
[1742614691759,2.7382,1987.0,1986.9,2.34664]
[1742614691958,3.74512,1987.0,1986.9,2.34664]
[1742614692154,2.7382,1987.0,1986.9,2.34664]
[1742614692752,4.74914252,1987.0,1986.9,2.34664]
[1742614693252,5.63816754,1987.0,1986.9,2.34664]
[1742614694956,4.63124754,1987.0,1986.9,2.34664]
[1742614695360,5.63816754,1987.0,1986.9,2.34664]
[1742614695958,4.63124754,1987.0,1986.9,2.34664]
[1742614696256,2.7382,1987.0,1986.9,2.34664]
[1742614696748,1.3908,1987.0,1986.9,2.34664]
[1742614705159,1.3908,1987.0,1986.9,3.02954]
[1742614707959,1.89304754,1987.1,1987.0,1.00692]
[1742614708157,1.89304754,1987.1,1987.0,2.99332]
[1742614708670,3.22374754,1987.1,1987.0,2.99332]
[1742614710067,2.33472252,1987.1,1987.0,2.99332]
[1742614710365,1.3307,1987.1,1987.0,2.99332]
[1742614711564,2.33757,1987.1,1987.0,2.35722]
[1742614711867,3.22659502,1987.1,1987.0,2.35722]
[1742614712062,4.23061754,1987.1,1987.0,2.35722]
[1742614712466,4.23061754,1987.1,1987.0,1.00692]
[1742614712663,1.00694,1987.0,1986.9,2.38113]
[1742614712863,2.98164,1987.0,1986.9,2.38113]
[1742614713865,1.9747,1987.0,1986.9,2.38113]
[1742614715665,2.98162,1987.0,1986.9,2.38113]
[1742614716565,2.98162,1987.0,1986.9,1.00693]
[1742614717462,2.98162,1987.0,1986.9,2.35253]
[1742614720364,4.49209,1987.0,1986.5,3.2078]
[1742614720571,5.1598,1986.9,1986.5,1.3053]
[1742614720768,1.00712,1986.6,1986.5,1.00716]
[1742614721266,3.61772,1986.6,1986.5,1.00716]
[1742614721473,5.51076754,1986.6,1986.5,1.00716]
[1742614721969,4.50364754,1986.6,1986.5,1.00716]
[1742614722370,3.49962502,1986.6,1986.5,1.00716]
[1742614722571,2.6106,1986.6,1986.5,1.00716]
[1742614723068,1.9601,1986.6,1986.5,1.00716]
[1742614723770,2.84912502,1986.6,1986.5,1.00716]
[1742614724370,2.96722,1986.6,1986.5,1.00716]
[1742614724869,3.85578045,1986.6,1986.5,1.00716]
[1742614725458,2.96722,1986.6,1986.5,1.00716]
[1742614731367,1.00717,1986.5,1986.4,1.3053]
[1742614731570,1.3797,1986.5,1986.4,2.31248]
[1742614731965,2.38687,1986.5,1986.4,2.31248]
[1742614732359,2.38687,1986.5,1986.4,1.3053]
[1742614732664,1.00727,1986.3,1986.2,4.21509]
[1742614732859,1.00727,1986.3,1986.2,5.55179]
[1742614733265,3.08137,1986.3,1986.2,5.55179]
[1742614734570,3.08137,1986.3,1986.2,4.5445]
[1742614736774,3.08137,1986.3,1986.2,5.55183]
[1742614736972,1.3797,1986.3,1986.2,5.55183]
[1742614737270,7.66202,1986.5,1986.4,1.00722]
[1742614737665,10.02621911,1986.5,1986.4,1.00722]
[1742614737864,10.02621911,1986.5,1986.4,2.40312]
[1742614738667,4.05821911,1986.5,1986.4,2.40312]
[1742614739373,1.00189911,1986.5,1986.4,2.40312]
[1742614739672,1.00716,1986.6,1986.5,1.00717]
[1742614739870,2.36946,1986.6,1986.5,1.66067]
[1742614742674,3.2078,1986.7,1986.6,1.00712]
[1742614742977,2.33518,1986.9,1986.7,1.00703]
[1742614743171,2.33518,1986.9,1986.8,2.036]
[1742614743474,1.00696,1987.0,1986.8,3.04302]
[1742614743675,1.00696,1987.0,1986.9,1.3235]
[1742614743874,1.00696,1987.0,1986.9,1.9973]
[1742614744063,2.30426,1987.0,1986.9,1.9973]
[1742614745174,1.68033256,1987.1,1986.9,3.00427]
[1742614745480,1.0069,1987.1,1987.0,1.3235]
[1742614745776,1.0069,1987.1,1987.0,4.5175]
[1742614746369,1.00687,1987.1,1987.0,4.5175]
[1742614746574,2.30417,1987.1,1987.0,4.5175]
[1742614746964,2.94827,1987.1,1987.0,4.5175]
[1742614747464,2.94827,1987.1,1986.8,1.69602]
[1742614747465,5.34560161,1987.1,1986.8,3.194]
[1742614747771,1.00702,1986.8,1986.7,2.0674]
[1742614748977,3.39157205,1986.9,1986.7,2.0674]
[1742614749178,3.39157205,1986.9,1986.8,1.371]
[1742614749375,2.00917205,1986.9,1986.8,1.371]
[1742614749572,1.00699,1986.9,1986.8,1.371]
[1742614751877,1.00699,1986.9,1986.8,2.37802]
[1742614752579,1.00699,1986.9,1986.8,1.371]
[1742614752972,1.00699,1986.9,1986.8,2.37802]
[1742614754380,7.61276,1987.0,1986.9,1.00697]
[1742614754677,7.85739155,1987.0,1986.9,2.35777]
[1742614754881,6.97030859,1987.0,1986.9,2.35777]
[1742614755180,5.968,1987.0,1986.9,2.35777]
[1742614755980,6.97012688,1987.0,1986.9,2.35777]
[1742614756576,5.968,1987.0,1986.9,2.35777]
[1742614757683,6.96990334,1987.0,1986.9,2.35777]
[1742614758486,5.968,1987.0,1986.9,2.35777]
[1742614759287,2.31817,1987.1,1987.0,1.00692]
[1742614759489,3.20476858,1987.1,1987.0,2.34582]
[1742614759678,3.20476858,1987.1,1987.0,1.3389]
[1742614759880,4.20652355,1987.1,1987.0,2.34582]
[1742614761288,7.41432355,1987.1,1987.0,1.3389]
[1742614761680,6.40745355,1987.1,1986.7,0.6964]
[1742614761883,1.00702,1986.8,1986.7,1.3615]
[1742614762190,1.00707,1986.7,1986.6,4.21488]
[1742614762482,2.35987,1986.7,1986.6,3.2078]
[1742614762876,1.00712,1986.6,1986.5,2.36867]
[1742614763284,1.00712,1986.6,1986.5,1.3615]
[1742614764085,5.72564,1986.6,1986.2,3.8809]
[1742614764286,1.00727,1986.3,1986.2,6.24967]
[1742614764479,1.00727,1986.3,1986.2,1.69517]
[1742614764677,1.00733,1986.2,1986.1,7.4156882]
[1742614764881,1.0073,1986.3,1986.2,1.00729]
[1742614765696,1.6754,1986.3,1986.2,1.00729]
[1742614766190,0.6681,1986.3,1986.2,1.00729]
[1742614766584,2.0324,1986.3,1986.2,1.00729]
[1742614767289,1.3643,1986.3,1986.2,1.00729]
[1742614768387,2.37157,1986.3,1986.2,1.00729]
[1742614768589,1.3643,1986.3,1986.2,1.00729]
[1742614773295,2.37157,1986.3,1986.2,1.00729]
[1742614774396,1.00733,1986.2,1986.1,4.2226982]
[1742614774700,1.00733,1986.2,1986.1,0.0075582]
[1742614774701,2.40903,1986.2,1986.1,0.0075582]
[1742614775692,2.40903,1986.2,1986.1,1.4159582]
[1742614778792,2.40903,1986.2,1986.1,0.0075582]
[1742614783897,3.09423,1986.2,1986.1,0.0075582]
[1742614785698,9.06223,1986.2,1986.1,0.0075582]
[1742614787705,10.06365632,1986.2,1986.1,0.0075582]
[1742614788108,9.06223,1986.2,1986.1,0.0075582]
[1742614789000,10.06390272,1986.2,1986.1,0.0075582]
[1742614791306,10.95171887,1986.2,1986.1,0.0075582]
[1742614793010,14.14571887,1986.2,1986.1,0.0075582]
[1742614793210,1.00738,1986.1,1986.0,1.2827]
[1742614793411,3.00118,1986.1,1986.0,1.2827]
[1742614793606,4.00285272,1986.1,1986.0,1.2827]
[1742614795303,3.29765272,1986.1,1986.0,2.29013]
[1742614797008,3.29765272,1986.1,1986.0,1.2827]
[1742614800211,4.18672484,1986.1,1986.0,1.2827]
[1742614801510,4.18672484,1986.1,1986.0,2.29013]
[1742614801711,3.29765272,1986.1,1986.0,2.29013]
[1742614802318,4.18707711,1986.1,1986.0,2.29013]
[1742614805720,4.18707711,1986.1,1986.0,1.2827]
[1742614807817,4.18707711,1986.1,1986.0,2.29013]
[1742614808319,4.18707711,1986.1,1986.0,1.2827]
[1742614808722,4.18707711,1986.1,1986.0,2.29013]
[1742614808921,4.18707711,1986.1,1986.0,1.2827]
[1742614809821,4.18707711,1986.1,1986.0,2.29013]
[1742614810018,2.89847711,1986.1,1986.0,2.29013]
[1742614810619,4.29337711,1986.1,1986.0,2.29013]
[1742614811123,4.29337711,1986.1,1986.0,1.2827]
[1742614811929,4.29337711,1986.1,1986.0,2.29013]
[1742614813234,4.29337711,1986.1,1986.0,1.2827]
[1742614815936,4.29337711,1986.1,1986.0,2.29013]
[1742614816831,4.29337711,1986.1,1986.0,1.2827]
[1742614820337,4.29337711,1986.1,1986.0,2.29013]
[1742614820727,4.29337711,1986.1,1986.0,1.2827]
[1742614827042,1.00743,1986.0,1985.9,0.0075582]
[1742614827243,7.04905439,1986.0,1985.9,0.0075582]
[1742614827438,8.05072711,1986.0,1985.9,0.0075582]
[1742614829039,8.05072711,1986.0,1985.9,1.4016582]
[1742614829238,8.05072711,1986.0,1985.9,2.1005582]
[1742614832740,4.19302711,1986.0,1985.9,3.1080382]
[1742614832942,3.30360272,1986.0,1985.9,3.1080382]
[1742614833344,1.00167272,1986.0,1985.9,3.1080382]
[1742614833544,1.00167272,1986.0,1985.9,9.5098382]
[1742614833744,0.99411452,1986.0,1985.9,12.0098382]
[1742614833946,0.0075582,1986.1,1986.0,1.00743]
[1742614834143,0.0075582,1986.1,1986.0,2.40413]
[1742614834342,1.00704,1986.8,1986.7,1.00707]
[1742614834546,1.4008,1986.8,1986.7,1.00707]
[1742614834851,1.00702,1986.8,1986.7,1.00707]
[1742614835355,1.00707,1986.7,1986.6,2.38799]
[1742614835653,2.32737,1986.7,1986.6,2.38799]
[1742614836351,1.3203,1986.7,1986.6,2.38799]
[1742614836645,1.00704,1986.8,1986.7,1.00707]
[1742614836849,2.32734,1986.8,1986.7,2.38797]
[1742614837041,1.0145682,1986.9,1986.8,1.00702]
[1742614837241,2.3348682,1986.9,1986.8,1.00702]
[1742614837452,1.00702,1986.8,1986.7,2.38793]
[1742614837749,1.00702,1986.8,1986.7,3.04133]
[1742614838647,1.00702,1986.8,1986.7,2.0343]
[1742614838847,1.00702,1986.8,1986.7,3.04137]
[1742614839253,2.30582,1986.8,1986.7,3.04137]
[1742614840754,2.30582,1986.8,1986.7,2.38797]
[1742614840960,2.30582,1986.8,1986.7,1.3809]
[1742614844150,5.51362,1986.8,1986.7,1.3809]
[1742614847459,1.0145682,1986.9,1986.8,1.00702]
[1742614847653,2.2971682,1986.9,1986.8,1.00702]
[1742614848060,1.00702,1986.8,1986.7,2.38794]
[1742614848257,2.28962,1986.8,1986.7,2.38794]
[1742614849353,1.2826,1986.8,1986.7,2.38794]
[1742614849554,0.0075582,1986.9,1986.8,1.00702]
[1742614849851,0.0075582,1986.9,1986.8,1.65522]
[1742614850053,1.3580582,1986.9,1986.8,1.65522]
[1742614850254,2.3650282,1986.9,1986.8,2.94312]
[1742614851064,2.3650282,1986.9,1986.8,1.2879]
[1742614852155,2.3650282,1986.9,1986.8,2.29492]
[1742614852566,1.3580582,1986.9,1986.8,2.29492]
[1742614855064,2.3650282,1986.9,1986.8,2.29492]
[1742614856067,1.3580582,1986.9,1986.8,2.29492]
[1742614860368,2.3650282,1986.9,1986.8,2.29492]
[1742614862266,1.00707,1986.8,1986.7,1.00707]
[1742614862465,3.03647,1986.8,1986.7,2.29217]
[1742614863067,2.0294,1986.8,1986.7,2.29217]
[1742614864674,1.3659,1986.8,1986.7,2.29217]
[1742614864977,1.3659,1986.8,1986.7,2.96337]
[1742614867288,1.3659,1986.8,1986.7,2.29217]
[1742614870875,2.37292,1986.8,1986.7,2.29217]
[1742614871072,1.3659,1986.8,1986.7,2.29217]
[1742614871270,2.37292,1986.8,1986.7,2.29217]
[1742614872768,1.3659,1986.8,1986.7,2.29217]
[1742614874171,2.37292,1986.8,1986.7,2.29217]
[1742614875775,1.3659,1986.8,1986.7,2.29217]
[1742614876274,2.37292,1986.8,1986.7,1.2851]
[1742614876477,2.37292,1986.8,1986.6,3.2078]
[1742614876478,1.00707,1986.7,1986.6,3.2078]
[1742614876683,3.60647,1986.7,1986.6,3.2078]
[1742614876979,1.00712,1986.6,1986.5,1.3411]
[1742614877178,2.28992,1986.6,1986.5,1.3411]
[1742614877681,1.00717,1986.5,1986.4,4.19921]
[1742614877976,2.32147,1986.5,1986.4,5.48391]
[1742614879176,2.32147,1986.5,1986.4,2.29191]
[1742614879375,1.00722,1986.4,1986.3,1.00724]
[1742614879584,3.69502,1986.4,1986.3,2.29194]
[1742614880982,2.6878,1986.4,1986.3,2.29194]
[1742614882679,2.013,1986.4,1986.3,2.29194]
[1742614882882,1.0071,1986.7,1986.6,1.00712]
[1742614883184,0.6923,1986.7,1986.6,1.00712]
[1742614884286,1.9772,1986.7,1986.6,2.41692]
[1742614884488,0.96650867,1986.9,1986.8,1.00702]
[1742614884681,3.83245266,1986.9,1986.8,1.00702]
[1742614884986,2.94370867,1986.9,1986.8,1.00702]
[1742614885182,1.9847582,1986.9,1986.8,2.41682]
[1742614885383,2.9917282,1986.9,1986.8,1.4098]
[1742614886882,2.9917282,1986.9,1986.8,2.41682]
[1742614887592,1.9847582,1986.9,1986.8,2.41682]
[1742614887981,2.9917282,1986.9,1986.8,2.41682]
[1742614888888,1.9847582,1986.9,1986.8,2.41682]
[1742614889289,2.9917282,1986.9,1986.8,2.41682]
[1742614889587,1.9847582,1986.9,1986.8,2.41682]
[1742614893384,2.9917282,1986.9,1986.8,2.41682]
[1742614893791,1.9847582,1986.9,1986.8,2.41682]
[1742614896987,0.0075582,1986.9,1986.8,2.41682]
[1742614897787,1.3160582,1986.9,1986.8,2.41682]
[1742614897997,0.0075582,1986.9,1986.8,2.41682]
[1742614898297,0.0075582,1986.9,1986.8,5.62462]
[1742614898491,0.0075582,1986.9,1986.8,8.12462]
[1742614899696,0.0075582,1986.9,1986.8,8.49845836]
[1742614902899,0.0075582,1986.9,1986.8,14.37045836]
[1742614903997,0.0075582,1986.9,1986.8,11.87045836]
[1742614906598,0.0075582,1986.9,1986.8,11.49662]
[1742614909303,1.3890582,1986.9,1986.8,11.49662]
[1742614910109,0.0075582,1986.9,1986.8,11.49662]
[1742614911400,1.2995582,1986.9,1986.8,11.49662]
[1742614917812,0.0075582,1986.9,1986.8,11.49662]
[1742614921118,1.2896582,1986.9,1986.8,11.49662]
[1742614922928,0.0075582,1986.9,1986.8,11.49662]
[1742614926039,0.0075582,1986.9,1986.8,8.28882]
[1742614926529,0.0075582,1986.9,1986.8,11.49662]
[1742614926728,1.332,1987.0,1986.9,1.00697]
[1742614926933,1.332,1987.0,1986.9,5.50217]
[1742614927130,1.332,1987.0,1986.9,6.16447]
[1742614927534,0.8703,1987.0,1986.9,6.16447]
[1742614928426,0.6773582,1987.1,1987.0,1.00692]
[1742614928628,0.6773582,1987.1,1987.0,5.51892]
[1742614936029,0.6773582,1987.1,1987.0,8.70992]
[1742614937142,0.0075582,1987.1,1987.0,8.70992]
[1742614939943,0.0075582,1987.1,1987.0,5.51892]
[1742614940139,0.0075582,1987.1,1987.0,7.40572]
[1742614941742,0.0075582,1987.1,1987.0,8.81302]
[1742614946645,0.0075582,1987.1,1987.0,5.60522]
[1742614946849,0.0075582,1987.1,1987.0,8.81302]
[1742614949051,1.335,1987.3,1987.2,1.00682]
[1742614949250,1.335,1987.3,1987.2,7.40562]
[1742614950045,0.6769,1987.3,1987.2,8.10562]
[1742614951348,0.6769,1987.3,1987.2,7.40562]
[1742614951554,1.3318,1987.3,1987.2,7.40562]
[1742614953150,2.7316,1987.3,1987.2,7.40562]
[1742614954051,2.7316,1987.3,1987.2,6.34642]
[1742614954354,2.7316,1987.3,1987.2,7.35324]
[1742614957452,2.7316,1987.3,1987.2,4.19782]
[1742614963264,2.7316,1987.3,1987.2,1.00682]
[1742614963771,2.7316,1987.3,1987.2,2.31492]
[1742614964062,2.7316,1987.3,1987.2,5.52272]
[1742614964254,0.6549,1987.3,1987.2,5.52272]
[1742614964963,0.0075582,1987.4,1987.3,1.00677]
[1742614965261,0.0075582,1987.4,1987.3,5.50587]
[1742614965562,0.0075582,1987.4,1987.3,6.81277]
[1742614968865,0.0075582,1987.4,1987.3,6.16297]
[1742614969167,0.0075582,1987.4,1987.3,5.50587]
[1742614969471,1.3260582,1987.4,1987.3,5.50587]
[1742614970763,0.0075582,1987.4,1987.3,5.50587]
[1742614971168,0.0075582,1987.4,1987.3,6.19027]
[1742614972572,1.2957582,1987.4,1987.3,6.19027]
[1742614974272,0.0075582,1987.4,1987.3,6.19027]
[1742614981168,0.0075582,1987.4,1987.3,2.31487]
[1742614981369,0.0075582,1987.4,1987.3,5.50487]
[1742614981579,1.3743582,1987.4,1987.3,5.50487]
[1742614983881,1.3743582,1987.4,1987.3,2.31487]
[1742614984081,1.3743582,1987.4,1987.3,5.50487]
[1742614993485,1.3743582,1987.4,1987.3,2.31487]
[1742614994086,1.3743582,1987.4,1987.3,1.3081]
[1742614994892,1.3743582,1987.4,1987.3,2.31487]
[1742614996296,4.5821582,1987.4,1987.2,1.00678]
[1742614996495,0.6398,1987.3,1987.2,1.00678]
[1742614996796,1.9229,1987.3,1987.2,1.00678]
[1742614996997,2.81123636,1987.3,1987.2,1.00678]
[1742614997693,3.76930092,1987.3,1987.2,1.00678]
[1742614997899,2.88096456,1987.3,1987.2,1.00678]
[1742614998100,1.9229,1987.3,1987.2,1.00678]
[1742614999591,2.92967,1987.3,1987.2,1.00678]
[1742615001500,1.9229,1987.3,1987.2,1.00678]
[1742615004293,6.13747,1987.3,1987.2,1.00678]
[1742615007109,1.9229,1987.3,1987.2,1.00678]
[1742615007312,2.92967,1987.3,1987.2,1.00678]
[1742615007898,6.13747,1987.3,1987.2,1.00678]